[Event "CRO-ch Youth U19 2020"]
[Site "Vinkovci"]
[Date "2020.07.28"]
[Round "1.12"]
[White "Baric, Marko"]
[Black "Cotic, Borna"]
[Result "0-1"]
[ECO "B40"]
[WhiteElo "1831"]
[BlackElo "2049"]
[Annotator "RC"]
[PlyCount "56"]
[EventDate "2020.07.28"]
[EventType "swiss"]
[EventCountry "CRO"]
[SourceTitle "playchess.com"]
[Source "ChessBase"]
[SourceQuality "1"]
[TimeControl "5400+30"]

1. e4 {[%emt 0:00:30]} c5 {[%emt 0:00:30]} 2. Nf3 {[%emt 0:00:00]} e6 {[%emt 0:00:30]} 3. c4 {[%emt 0:00:00]} Nc6 {[%emt 0:00:30]} 4. Be2 {[%emt 0:00:30]} g5 {[%emt 0:00:00]} 5. d3 {[%emt 0:00:30]} h6 {[%emt 0:00:00]} 6. Nc3 {[%emt 0:02:30]} Bg7 {[%emt 0:01:30]} 7. Be3 {[%emt 0:00:30]} d6 {[%emt 0:01:30]} 8. h3 {[%emt 0:02:30]} Nd4 {[%emt 0:04:30]} 9. Rb1 {[%emt 0:04:30]} Ne7 {[%emt 0:05:30]} 10. O-O {[%emt 0:07:30]} O-O {[%emt 0:03:30]} 11. Nh2 {[%emt 0:03:30]} f5 {[%emt 0:06:30]} 12. f4 {[%emt 0:02:30]} Ng6 {[%emt 0:06:30]} 13. Bh5 {[%emt 0:06:30]} Nxf4 {[%emt 0:02:30]} 14. Bxf4 {[%emt 0:01:30]} gxf4 {[%emt 0:00:30]} 15. Rxf4 {[%emt 0:04:30]} Qg5 {[%emt 0:01:30]} 16. Rf2 {[%emt 0:06:30]} Bd7 {[%emt 0:02:30]} 17. exf5 {[%emt 0:02:30]} Bc6 {[%emt 0:01:30]} 18. Bf3 {[%emt 0:03:30]} Rxf5 {[%emt 0:04:30]} 19. Ne4 {[%emt 0:06:30]} Bxe4 {[%emt 0:02:30]} 20. dxe4 {[%emt 0:00:30]} Rf7 {[%emt 0:02:30]} 21. Qd2 {[%emt 0:08:30]} Qg3 {[%emt 0:03:30]} 22. Kh1 {[%emt 0:07:30]} Raf8 {[%emt 0:01:30]} 23. Qe3 {[%emt 0:08:30]} Be5 {[%emt 0:03:30]} 24. Nf1 {[%emt 0:01:38]} Qh4 {[%emt 0:00:30]} 25. b4 {[%emt 0:08:23]} Nxf3 {[%emt 0:02:30]} 26. gxf3 {[%emt 0:00:14]} Qxh3+ {[%emt 0:01:30]} 27. Nh2 {[%emt 0:00:09]} Rxf3 {[%emt 0:02:30]} 28. Rg2+ {[%emt 0:03:20]} Qxg2+ {[%emt 0:00:30]} 0-1

[Event "CRO-ch Youth U19 2020"]
[Site "Vinkovci"]
[Date "2020.07.28"]
[Round "1.13"]
[White "Purini, Bruno"]
[Black "Salamon, Viktor"]
[Result "0-1"]
[ECO "C01"]
[WhiteElo "2017"]
[BlackElo "1805"]
[Annotator "NA"]
[PlyCount "86"]
[EventDate "2020.07.28"]
[EventType "swiss"]
[EventCountry "CRO"]
[SourceTitle "playchess.com"]
[Source "ChessBase"]
[SourceQuality "1"]
[TimeControl "5400+30"]

{[%evp 9,71,11,9,21,32767,17,31,32767,32767,32767,32767,32767,32767,-2,10,-11,54,56,32767,-5,32767,32767,32767,20,32767,32767,75,-39,0,-37,-55,-41,0,-2,32767,32767,32767,32767,32767,32767,32767,32767,32767,32767,32767,32767,32767,-56,0,32767,57,0,0,0,14,16,149,0,13,0,0,-777,-507,-394]} 1. e4 {[%emt 0:00:30]} e6 {[%emt 0:00:30]} 2. d4 {[%emt 0:00:00]} d5 {[%emt 0:00:00]} 3. exd5 {[%emt 0:00:00]} exd5 {[%emt 0:00:00]} 4. Nf3 {[%emt 0:00:30]} Bd6 {[%emt 0:00:30]} 5. Bd3 {[%emt 0:01:30]} Nc6 {[%emt 0:01:30]} 6. O-O {[%emt 0:00:30]} Bg4 {[%emt 0:00:30]} 7. c3 {[%emt 0:02:30]} Nge7 {[%emt 0:00:30]} 8. b4 {[%emt 0:01:30] C01: French: Exchange Variation.} f6 {[%emt 0:02:30]} 9. a4 {[%emt 0:02:30]} Qd7 {[%emt 0:00:30]} 10. Na3 {[%emt 0:01:30] [#]} a6 $146 {[%emt 0:02:30]} ({Predecessor:} 10... g5 11. Nb5 Bf4 12. Re1 O-O-O 13. a5 Kb8 14. Na3 Ng6 15. Nc2 Bxc1 16. Rxc1 Nf4 {1-0 (53) Kozma,E (2123)-Toth,L (2208) Hungary 2004}) 11. b5 {[%emt 0:03:30]} Na5 {[%emt 0:01:30]} 12. c4 {[%emt 0:06:30]} Bxf3 {[%emt 0:05:30]} (12... dxc4 $11 13. Nxc4 Nxc4 14. Bxc4 axb5 15. Bxb5 c6) 13. Qxf3 {[%emt 0:02:30]} Nb3 {[%emt 0:05:30]} 14. Ra2 {[%emt 0:08:30]} (14. c5 $14 Nxd4 15. Qh5+ {[%mdl 64] Double Attack} g6 {[#]} 16. Bxg6+ $1 {[%mdl 512]} Nxg6 17. cxd6 Qxd6 18. Bb2) 14... Nxd4 {[%emt 0:07:30]} 15. Qh5+ {[%emt 0:11:30]} g6 {[%emt 0:04:30]} 16. Qh4 {[%emt 0:01:30]} Be5 {[%emt 0:07:30]} 17. Re1 {[%emt 0:05:30]} Ndf5 {[%emt 0:05:30]} 18. Qh3 {[%emt 0:00:30]} ({White should play} 18. Bxf5 $1 $14 gxf5 19. Qh5+ Kd8 20. cxd5) 18... Nd4 {[%emt 0:02:30]} 19. Qh4 {[%emt 0:01:30]} O-O {[%emt 0:01:30]} 20. cxd5 {[%emt 0:02:30]} Ndf5 {[%emt 0:03:30]} 21. Qc4 {[%emt 0:05:30]} Nd6 {[%emt 0:02:30]} 22. Qb3 {[%emt 0:01:30]} Nef5 {[%emt 0:02:30]} 23. Be3 {[%emt 0:08:30]} Nxe3 {[%emt 0:04:30]} 24. Rxe3 {[%emt 0:00:30]} Kg7 {[%emt 0:01:30]} 25. Rae2 {[%emt 0:01:30]} axb5 {[%emt 0:04:30]} 26. axb5 {[%emt 0:00:30]} Nf5 {[%emt 0:02:30]} 27. Bxf5 {[%emt 0:01:30]} Qxf5 {[%emt 0:00:30]} 28. Re4 {[%emt 0:03:30]} (28. g3 $11) 28... Rfd8 {[%emt 0:04:30]} 29. Nc2 {[%emt 0:01:30] [#]} Bd6 $2 {[%emt 0:01:30]} (29... Rxd5 $1 $19 {[%mdl 512]} 30. g3 (30. Qxd5 Bxh2+) 30... Qd7) 30. g4 {[%emt 0:02:30]} Qg5 {[%emt 0:02:30]} 31. Nd4 {[%emt 0:01:30]} Qh6 {[%emt 0:01:30]} 32. Ne6+ {[%emt 0:00:30]} Kh8 {[%emt 0:00:30] [#]} (32... Kg8 $11 33. h3 (33. f4 Ra1+ 34. Kg2 Rda8 $17) 33... Ra1+ 34. Kg2 Rda8) 33. f4 $2 {[%emt 0:00:30]} (33. h3 $1 $18) 33... Ra1+ {[%emt 0:03:30]} 34. Kg2 {[%emt 0:00:30]} Rda8 {[%emt 0:00:30]} 35. h3 $2 {[%emt 0:01:30]} (35. Qb2 $11 Qh4 36. h3) 35... R8a3 {[%emt 0:02:30]} 36. g5 $19 {[%emt 0:02:01]} Qh5 {[%emt 0:01:43]} 37. Nd8 {[%emt 0:01:25]} Qxe2+ {[%emt 0:04:25]} 38. Rxe2 {[%emt 0:00:04]} Rxb3 {[%emt 0:00:30]} 39. gxf6 {[%emt 0:00:52]} h5 {[%emt 0:01:36]} 40. Nf7+ {[%emt 0:00:56]} Kg8 {[%emt 0:00:40]} 41. Ng5 {[%emt 0:01:05]} Ra8 {[%emt 0:02:20]} 42. f7+ {[%emt 0:00:13]} Kf8 {[%emt 0:00:35]} 43. b6 {[%emt 0:00:17]} cxb6 {[%emt 0:00:55]} 0-1

[Event "CRO-ch Youth U19 2020"]
[Site "Vinkovci"]
[Date "2020.07.28"]
[Round "1.14"]
[White "Smetisko, Marija"]
[Black "Dasic, Jelena"]
[Result "1-0"]
[ECO "B43"]
[WhiteElo "1917"]
[BlackElo "1814"]
[Annotator "ChessBase"]
[PlyCount "39"]
[EventDate "2020.07.28"]
[EventType "swiss"]
[EventCountry "CRO"]
[SourceTitle "playchess.com"]
[Source "ChessBase"]
[SourceQuality "1"]
[TimeControl "5400+30"]

1. e4 {[%emt 0:00:30]} c5 {[%emt 0:00:30]} 2. Nf3 {[%emt 0:00:00]} e6 {[%emt 0:00:00]} 3. d4 {[%emt 0:03:00]} cxd4 {[%emt 0:00:00]} 4. Nxd4 {[%emt 0:00:30]} a6 {[%emt 0:00:00]} 5. a3 {[%emt 0:02:30]} Nf6 {[%emt 0:01:00]} 6. Nc3 {[%emt 0:00:30]} Qc7 {[%emt 0:00:00]} 7. Be2 {[%emt 0:03:30]} b5 {[%emt 0:03:00]} 8. Bg5 {[%emt 0:06:30]} b4 {[%emt 0:01:30]} 9. axb4 {[%emt 0:04:30]} Bxb4 {[%emt 0:00:30]} 10. Ndb5 {[%emt 0:15:30]} Qc6 {[%emt 0:03:30]} 11. Bxf6 {[%emt 0:02:30]} gxf6 {[%emt 0:00:30]} 12. Qd4 {[%emt 0:04:30]} Bxc3+ {[%emt 0:05:30]} 13. Nxc3 {[%emt 0:01:30]} e5 {[%emt 0:00:30]} 14. Qb4 {[%emt 0:04:30]} Qb7 {[%emt 0:09:30]} 15. Qa3 {[%emt 0:02:30]} Nc6 {[%emt 0:09:30]} 16. Nd5 {[%emt 0:02:30]} Kd8 {[%emt 0:00:30]} 17. Qd6 {[%emt 0:07:30]} Rg8 {[%emt 0:02:30]} 18. Bh5 {[%emt 0:01:30]} Re8 {[%emt 0:04:30]} 19. Bxf7 {[%emt 0:02:30]} Re7 {[%emt 0:02:30]} 20. Qxf6 {[%emt 0:00:30]} 1-0

[Event "CRO-ch Youth U19 2020"]
[Site "Vinkovci"]
[Date "2020.07.28"]
[Round "1.15"]
[White "Juric, Matea"]
[Black "Golub, Nikolina"]
[Result "0-1"]
[ECO "B49"]
[WhiteElo "1559"]
[BlackElo "1911"]
[Annotator "ChessBase"]
[PlyCount "48"]
[EventDate "2020.07.28"]
[EventType "swiss"]
[EventCountry "CRO"]
[SourceTitle "playchess.com"]
[Source "ChessBase"]
[SourceQuality "1"]
[TimeControl "5400+30"]

1. e4 {[%emt 0:00:30]} c5 {[%emt 0:00:30]} 2. Nf3 {[%emt 0:00:00]} e6 {[%emt 0:00:00]} 3. d4 {[%emt 0:00:00]} cxd4 {[%emt 0:00:00]} 4. Nxd4 {[%emt 0:00:30]} Nc6 {[%emt 0:00:00]} 5. Nc3 {[%emt 0:02:30]} a6 {[%emt 0:00:00]} 6. Be3 {[%emt 0:01:30]} Qc7 {[%emt 0:00:30]} 7. Be2 {[%emt 0:04:30]} Nf6 {[%emt 0:00:30]} 8. f3 {[%emt 0:04:30]} b5 {[%emt 0:04:30]} 9. a3 {[%emt 0:05:30]} Be7 {[%emt 0:08:30]} 10. Qd2 {[%emt 0:09:30]} Na5 {[%emt 0:07:30]} 11. e5 {[%emt 0:28:30]} Ng8 {[%emt 0:11:30]} 12. Bf4 {[%emt 0:09:30]} Bb7 {[%emt 0:07:30]} 13. Bd3 {[%emt 0:17:17]} Nc4 {[%emt 0:02:30]} 14. Bxc4 {[%emt 0:00:43]} Qxc4 {[%emt 0:00:30]} 15. Rd1 {[%emt 0:03:31]} Rd8 {[%emt 0:02:30]} 16. Qd3 {[%emt 0:02:44]} Qxd3 {[%emt 0:01:30]} 17. Rxd3 {[%emt 0:00:44]} g5 {[%emt 0:06:30]} 18. Bg3 {[%emt 0:01:01]} f5 {[%emt 0:07:30]} 19. h4 {[%emt 0:02:15]} f4 {[%emt 0:01:30]} 20. Bf2 {[%emt 0:00:06]} Nh6 {[%emt 0:05:30]} 21. hxg5 {[%emt 0:00:24]} Nf7 {[%emt 0:00:00]} 22. Nde2 {[%emt 0:04:18]} Nxe5 {[%emt 0:02:00]} 23. Rd1 {[%emt 0:00:48]} Ng6 {[%emt 0:00:30]} 24. Nd4 {[%emt 0:00:38]} Bxg5 {[%emt 0:00:30]} 0-1

[Event "CRO-ch Youth U19 2020"]
[Site "Vinkovci"]
[Date "2020.07.28"]
[Round "1.16"]
[White "Vujic, Agata"]
[Black "Muha, Magdalena"]
[Result "1/2-1/2"]
[ECO "C07"]
[WhiteElo "1621"]
[BlackElo "1720"]
[Annotator "NA RC"]
[PlyCount "45"]
[EventDate "2020.07.28"]
[EventType "swiss"]
[EventCountry "CRO"]
[SourceTitle "playchess.com"]
[Source "ChessBase"]
[SourceQuality "1"]
[TimeControl "5400+30"]

1. e4 {[%emt 0:00:30]} e6 {[%emt 0:00:30]} 2. d4 {[%emt 0:00:00]} d5 {[%emt 0:00:00]} 3. Nd2 {[%emt 0:00:00]} c5 {[%emt 0:01:00]} 4. exd5 {[%emt 0:02:30]} Qxd5 {[%emt 0:00:30]} 5. dxc5 {[%emt 0:07:30]} Bxc5 {[%emt 0:02:30]} 6. Ngf3 {[%emt 0:00:00]} Nf6 {[%emt 0:03:30]} 7. Bc4 {[%emt 0:00:00]} Qd6 {[%emt 0:04:30]} 8. Qe2 {[%emt 0:08:30]} Nc6 {[%emt 0:07:30]} 9. c3 {[%emt 0:00:30]} O-O {[%emt 0:05:30]} 10. O-O {[%emt 0:00:30]} Qc7 {[%emt 0:03:30]} 11. b4 {[%emt 0:00:30]} Bd6 {[%emt 0:02:30]} 12. Bb2 {[%emt 0:00:30]} b6 {[%emt 0:01:30]} 13. Bd3 {[%emt 0:00:30]} Nd5 {[%emt 0:19:30]} 14. g3 {[%emt 0:07:30]} Ne5 {[%emt 0:04:30]} 15. Nxe5 {[%emt 0:19:30]} Bxe5 {[%emt 0:00:30]} 16. Nf3 {[%emt 0:00:30]} Bf6 {[%emt 0:01:30]} 17. Rac1 {[%emt 0:08:30]} Bb7 {[%emt 0:02:30]} 18. Rfe1 {[%emt 0:00:30]} Rac8 {[%emt 0:07:30]} 19. Ne5 {[%emt 0:10:30]} Rfd8 {[%emt 0:01:30]} 20. f4 {[%emt 0:02:30]} Rd6 {[%emt 0:08:30]} 21. a3 {[%emt 0:01:30]} Ne7 {[%emt 0:06:31]} 22. Bxh7+ {[%emt 0:05:30]} Kxh7 {[%emt 0:06:45]} 23. Qh5+ {[%emt 0:04:52]} 1/2-1/2

[Event "CRO-ch Youth U19 2020"]
[Site "Vinkovci"]
[Date "2020.07.29"]
[Round "3.10"]
[White "Smetisko, Josip"]
[Black "Jakrlin, Mihael"]
[Result "0-1"]
[ECO "B04"]
[WhiteElo "1940"]
[BlackElo "2183"]
[Annotator "NA RC"]
[PlyCount "93"]
[EventDate "2020.07.28"]
[EventType "swiss"]
[EventCountry "CRO"]
[SourceTitle "playchess.com"]
[Source "ChessBase"]
[SourceQuality "1"]
[TimeControl "5400+30"]

1. e4 {[%emt 0:00:30]} Nf6 {[%emt 0:00:30]} 2. e5 {[%emt 0:01:30]} Nd5 {[%emt 0:00:00]} 3. d4 {[%emt 0:00:30]} d6 {[%emt 0:00:00]} 4. Nf3 {[%emt 0:01:30]} dxe5 {[%emt 0:01:30]} 5. Nxe5 {[%emt 0:01:30]} c6 {[%emt 0:00:30]} 6. c4 {[%emt 0:03:30]} Nb4 {[%emt 0:00:00] B04: Alekhine's Defence: 4 Nf3.} 7. Be3 {[%emt 0:04:30]} Bf5 $1 {[%emt 0:00:00]} 8. Nd3 {[%emt 0:00:30]} e5 {[%emt 0:00:30]} 9. Nxb4 {[%emt 0:01:30]} Bxb4+ {[%emt 0:00:30]} 10. Nc3 {[%emt 0:00:30]} Qa5 {[%emt 0:01:30]} 11. Qb3 {[%emt 0:00:30]} (11. Rc1 $11) 11... Na6 {[%emt 0:04:30]} 12. Be2 {[%emt 0:09:30]} exd4 {[%emt 0:03:30]} 13. Bxd4 {[%emt 0:00:00]} O-O-O {[%emt 0:00:30]} 14. Rd1 $2 {[%emt 0:16:00] [#]} (14. Be3 {was the only chance.}) 14... Rhe8 $2 {[%emt 0:11:30] [#]} (14... Rxd4 $1 $19 {[%mdl 512] is more deadly.} 15. Rxd4 Nc5) 15. O-O $146 {[%emt 0:02:30]} ({Predecessor:} 15. a3 Bc5 16. Bxg7 Bxf2+ 17. Kxf2 Qc5+ 18. Kf1 Qe3 19. Rxd8+ Rxd8 20. c5 Qf4+ 21. Kg1 Qe3+ 22. Kf1 Qf4+ 23. Kg1 Nxc5 24. Qxf7 Qe3+ 25. Kf1 Qf4+ 26. Kg1 {½-½ (26) Vykouk,J (2453)-Stocek,J (2556) Pardubice 2019}) 15... Rxd4 {[%emt 0:00:30]} 16. Rxd4 {[%emt 0:00:00]} Bxc3 {[%emt 0:00:30]} 17. bxc3 {[%emt 0:06:00]} Rxe2 {[%emt 0:00:30]} 18. Qd1 {[%emt 0:08:30]} Re8 {[%emt 0:01:30]} 19. Qh5 {[%emt 0:02:30]} g6 {[%emt 0:02:30]} 20. Qxh7 {[%emt 0:00:30]} Be6 {[%emt 0:00:30]} 21. Qh4 {[%emt 0:01:30]} Qe5 {[%emt 0:07:30]} 22. Rfd1 {[%emt 0:01:30]} g5 {[%emt 0:00:00]} 23. Re4 $2 {[%emt 0:11:30]} (23. Qe4 {is more resistant.} Qxe4 24. Rxe4) 23... gxh4 $2 {[%emt 0:01:00]} (23... Qf5 $19 {is more deadly.} 24. Rxe6 Qxe6) 24. Rxe5 {[%emt 0:00:00]} h3 {[%emt 0:00:00]} 25. g4 {[%emt 0:02:00]} Rg8 {[%emt 0:00:00]} 26. f3 {[%emt 0:00:30]} Bxc4 {[%emt 0:00:30]} 27. a3 {[%emt 0:00:30]} Nc7 {[%emt 0:00:30]} 28. Rd4 {[%emt 0:02:30]} (28. Kf2 $142) 28... Be6 {[%emt 0:01:30]} 29. Kf2 {[%emt 0:01:30]} Nb5 {[%emt 0:00:30]} 30. Ra4 {[%emt 0:01:41]} Nxc3 {[%emt 0:00:30]} 31. Rxa7 {[%emt 0:00:30]} Kb8 {[%emt 0:00:30]} 32. Rea5 {[%emt 0:00:59]} Bc8 {[%emt 0:00:30]} 33. Ra8+ {[%emt 0:00:37]} Kc7 {[%emt 0:00:30]} 34. Re5 {[%emt 0:03:29]} Kd6 {[%emt 0:01:30]} 35. Rh5 {[%emt 0:01:09]} c5 {[%emt 0:01:30]} 36. Rxh3 {[%emt 0:00:47] [#]} c4 $1 {[%emt 0:01:30]} 37. Rh6+ {[%emt 0:02:30] [#]} Kc5 $1 {[%emt 0:04:30]} 38. Rf6 {[%emt 0:04:32]} Nd5 {[%emt 0:02:30]} 39. Rxf7 {[%emt 0:02:31]} b5 {[%emt 0:02:30]} 40. Ke2 {[%emt 0:02:11]} (40. Rb7 $142 c3 41. Rbb8) 40... Kd4 {[%emt 0:07:30]} (40... Re8+ $142 41. Kd2 c3+ 42. Kd1 Kc4) 41. Kd2 $2 {[%emt 0:01:20]} (41. Rb8 Re8+ 42. Kf2) 41... c3+ {[%emt 0:01:30]} 42. Kc2 {[%emt 0:01:30] [#]} Bf5+ $1 {[%emt 0:00:30] Discovered Attack} 43. gxf5 {[%emt 0:01:01]} Rxa8 {[%emt 0:00:00]} 44. f6 {[%emt 0:01:23]} Rxa3 {[%emt 0:00:00]} 45. Rd7 {[%emt 0:00:17]} b4 {[%emt 0:01:30]} 46. f7 {[%emt 0:00:12]} b3+ {[%emt 0:00:00]} 47. Kb1 {[%emt 0:00:34]} 0-1

[Event "CRO-ch Youth U19 2020"]
[Site "Vinkovci"]
[Date "2020.07.29"]
[Round "3.11"]
[White "Moric, Ivan"]
[Black "Alfirevic, Duje"]
[Result "1/2-1/2"]
[ECO "C80"]
[WhiteElo "1726"]
[BlackElo "2011"]
[Annotator "ChessBase"]
[PlyCount "70"]
[EventDate "2020.07.28"]
[EventType "swiss"]
[EventCountry "CRO"]
[SourceTitle "playchess.com"]
[Source "ChessBase"]
[SourceQuality "1"]
[TimeControl "5400+30"]

1. e4 {[%emt 0:00:30]} e5 {[%emt 0:04:30]} 2. Nf3 {[%emt 0:00:00]} Nc6 {[%emt 0:00:30]} 3. Bb5 {[%emt 0:00:00]} a6 {[%emt 0:00:30]} 4. Ba4 {[%emt 0:00:30]} Nf6 {[%emt 0:00:00]} 5. O-O {[%emt 0:00:30]} Nxe4 {[%emt 0:00:00]} 6. d4 {[%emt 0:01:30]} b5 {[%emt 0:00:30]} 7. Bb3 {[%emt 0:00:30]} d5 {[%emt 0:00:30]} 8. Nxe5 {[%emt 0:01:30]} Nxe5 {[%emt 0:00:30]} 9. dxe5 {[%emt 0:00:30]} Be6 {[%emt 0:02:30]} 10. Be3 {[%emt 0:02:30]} Be7 {[%emt 0:03:30]} 11. Nd2 {[%emt 0:01:30]} Nc5 {[%emt 0:03:30]} 12. c3 {[%emt 0:02:30]} O-O {[%emt 0:03:30]} 13. Bc2 {[%emt 0:04:30]} Qd7 {[%emt 0:15:30]} 14. f4 {[%emt 0:07:30]} f5 {[%emt 0:20:30]} 15. b4 {[%emt 0:16:30]} Nb7 {[%emt 0:07:30]} 16. Nb3 {[%emt 0:04:30]} a5 {[%emt 0:00:30]} 17. a3 {[%emt 0:13:30]} Rfc8 {[%emt 0:05:30]} 18. g4 {[%emt 0:05:30]} g6 {[%emt 0:02:30]} 19. Nd4 {[%emt 0:03:30]} c5 {[%emt 0:02:30]} 20. Nxe6 {[%emt 0:01:30]} Qxe6 {[%emt 0:00:00]} 21. gxf5 {[%emt 0:00:00]} gxf5 {[%emt 0:00:00]} 22. Bxf5 {[%emt 0:01:00]} Qxf5 {[%emt 0:00:30]} 23. Qxd5+ {[%emt 0:00:30]} Kh8 {[%emt 0:02:30]} 24. Qxb7 {[%emt 0:00:00]} Rg8+ {[%emt 0:01:30]} 25. Kh1 {[%emt 0:01:00]} axb4 {[%emt 0:00:30]} 26. cxb4 {[%emt 0:02:30]} cxb4 {[%emt 0:01:30]} 27. axb4 {[%emt 0:06:30]} Qd3 {[%emt 0:02:30]} 28. Qf3 {[%emt 0:04:09]} Rxa1 {[%emt 0:01:04]} 29. Rxa1 {[%emt 0:00:08]} Bxb4 {[%emt 0:02:52]} 30. Rg1 {[%emt 0:03:40]} Rxg1+ {[%emt 0:03:59]} 31. Kxg1 {[%emt 0:00:10]} Qg6+ {[%emt 0:01:17]} 32. Kf2 {[%emt 0:00:58]} Qc2+ {[%emt 0:00:48]} 33. Kg3 {[%emt 0:00:36]} Qg6+ {[%emt 0:00:37]} 34. Qg4 {[%emt 0:01:54]} Be1+ {[%emt 0:04:01]} 35. Kh3 {[%emt 0:00:49]} Qd3 {[%emt 0:06:03]} 1/2-1/2

[Event "CRO-ch Youth U19 2020"]
[Site "Vinkovci"]
[Date "2020.07.29"]
[Round "3.12"]
[White "Novosel, Marko"]
[Black "Baric, Marko"]
[Result "1/2-1/2"]
[ECO "B23"]
[WhiteElo "2147"]
[BlackElo "1831"]
[Annotator "ChessBase"]
[PlyCount "82"]
[EventDate "2020.07.28"]
[EventType "swiss"]
[EventCountry "CRO"]
[SourceTitle "playchess.com"]
[Source "ChessBase"]
[SourceQuality "1"]
[TimeControl "5400+30"]

1. e4 {[%emt 0:00:30]} c5 {[%emt 0:00:30]} 2. Nc3 {[%emt 0:00:00]} Nc6 {[%emt 0:00:30]} 3. Bb5 {[%emt 0:00:00]} g6 {[%emt 0:00:30]} 4. f4 {[%emt 0:01:30]} Nd4 {[%emt 0:03:30]} 5. Nf3 {[%emt 0:00:30]} Nxb5 {[%emt 0:03:30]} 6. Nxb5 {[%emt 0:00:00]} a6 {[%emt 0:00:00]} 7. Nc3 {[%emt 0:00:00]} Bg7 {[%emt 0:00:00]} 8. O-O {[%emt 0:00:30]} d6 {[%emt 0:02:30]} 9. d3 {[%emt 0:08:30]} e6 {[%emt 0:00:30]} 10. Ne2 {[%emt 0:07:30]} Ne7 {[%emt 0:03:30]} 11. c3 {[%emt 0:00:30]} O-O {[%emt 0:03:30]} 12. Kh1 {[%emt 0:04:30]} Qc7 {[%emt 0:02:30]} 13. Ng3 {[%emt 0:07:30]} d5 {[%emt 0:07:30]} 14. Nh4 {[%emt 0:02:30]} dxe4 {[%emt 0:08:30]} 15. dxe4 {[%emt 0:00:30]} f5 {[%emt 0:07:30]} 16. e5 {[%emt 0:14:30]} b5 {[%emt 0:04:30]} 17. Qd6 {[%emt 0:06:30]} Qxd6 {[%emt 0:02:30]} 18. exd6 {[%emt 0:00:30]} Nd5 {[%emt 0:00:30]} 19. Nf3 {[%emt 0:07:30]} Rd8 {[%emt 0:03:30]} 20. a4 {[%emt 0:10:30]} bxa4 {[%emt 0:09:30]} 21. Rxa4 {[%emt 0:01:30]} Rxd6 {[%emt 0:04:30]} 22. Ra5 {[%emt 0:12:32]} c4 {[%emt 0:11:30]} 23. Rc5 {[%emt 0:06:07]} Bd7 {[%emt 0:00:46]} 24. Re1 {[%emt 0:02:07]} Rc8 {[%emt 0:02:39]} 25. Rxc8+ {[%emt 0:00:29]} Bxc8 {[%emt 0:00:33]} 26. Ne5 {[%emt 0:00:30]} Bxe5 {[%emt 0:03:04]} 27. fxe5 {[%emt 0:00:05]} Rb6 {[%emt 0:00:28]} 28. Ne2 {[%emt 0:04:09]} Kg7 {[%emt 0:02:25]} 29. Kg1 {[%emt 0:00:20]} h6 {[%emt 0:00:47]} 30. h4 {[%emt 0:00:11]} Bd7 {[%emt 0:04:55]} 31. g3 {[%emt 0:00:50]} a5 {[%emt 0:00:46]} 32. Nf4 {[%emt 0:00:53]} Nxf4 {[%emt 0:03:44]} 33. gxf4 {[%emt 0:00:06]} Bc6 {[%emt 0:00:53]} 34. Rd1 {[%emt 0:00:30]} Bd5 {[%emt 0:00:19]} 35. Kf2 {[%emt 0:00:10]} Rb3 {[%emt 0:01:56]} 36. Ke3 {[%emt 0:00:07]} a4 {[%emt 0:00:53]} 37. Kd4 {[%emt 0:00:27]} Rb5 {[%emt 0:00:27]} 38. Rg1 {[%emt 0:01:04]} Kf7 {[%emt 0:00:27]} 39. Re1 {[%emt 0:00:25]} Ra5 {[%emt 0:01:16]} 40. Rg1 {[%emt 0:00:28]} Ra8 {[%emt 0:00:46]} 41. Kc5 {[%emt 0:00:37]} Rc8+ {[%emt 0:00:22]} 1/2-1/2

[Event "CRO-ch Youth U19 2020"]
[Site "Vinkovci"]
[Date "2020.07.29"]
[Round "3.13"]
[White "Ghersinich, Enrico"]
[Black "Birkic, Josip"]
[Result "1-0"]
[ECO "E31"]
[WhiteElo "2299"]
[BlackElo "1984"]
[Annotator "RC"]
[PlyCount "59"]
[EventDate "2020.07.28"]
[EventType "swiss"]
[EventCountry "CRO"]
[SourceTitle "playchess.com"]
[Source "ChessBase"]
[SourceQuality "1"]
[TimeControl "5400+30"]

1. d4 {[%emt 0:00:30]} Nf6 {[%emt 0:03:30]} 2. c4 {[%emt 0:00:00]} e6 {[%emt 0:00:00]} 3. Nc3 {[%emt 0:01:00]} Bb4 {[%emt 0:00:00]} 4. Bg5 {[%emt 0:00:00]} c5 {[%emt 0:00:30]} 5. d5 {[%emt 0:00:00]} d6 {[%emt 0:07:30]} 6. e3 {[%emt 0:01:30]} Bxc3+ {[%emt 0:00:30]} 7. bxc3 {[%emt 0:00:30]} h6 {[%emt 0:00:30]} 8. Bh4 {[%emt 0:00:30]} e5 {[%emt 0:00:30]} 9. Bd3 {[%emt 0:03:30]} O-O {[%emt 0:03:30]} 10. Ne2 {[%emt 0:04:30]} Re8 {[%emt 0:03:30]} 11. f3 {[%emt 0:05:30]} Nbd7 {[%emt 0:08:30]} 12. Qc2 {[%emt 0:05:30]} Nf8 {[%emt 0:06:30]} 13. Kd2 {[%emt 0:06:30]} g5 {[%emt 0:17:30]} 14. Bf2 {[%emt 0:00:30]} Kg7 {[%emt 0:01:30]} 15. h4 {[%emt 0:02:30]} Qe7 {[%emt 0:07:30]} 16. hxg5 {[%emt 0:01:30]} hxg5 {[%emt 0:00:30]} 17. Ng3 {[%emt 0:00:30]} Ng6 {[%emt 0:03:30]} 18. Bf5 {[%emt 0:06:30]} Bd7 {[%emt 0:05:30]} 19. Bxd7 {[%emt 0:03:30]} Qxd7 {[%emt 0:00:30]} 20. Nf5+ {[%emt 0:00:00]} Kf8 {[%emt 0:01:30]} 21. e4 {[%emt 0:00:00]} Ng8 {[%emt 0:07:30]} 22. Rh7 {[%emt 0:04:30]} Rac8 {[%emt 0:04:07]} 23. Be3 {[%emt 0:02:30]} Qd8 {[%emt 0:01:30]} 24. Qa4 {[%emt 0:01:30]} Nf6 {[%emt 0:05:56]} 25. Rg7 {[%emt 0:01:30]} Nh5 {[%emt 0:00:47]} 26. Rh7 {[%emt 0:01:30]} Nf6 {[%emt 0:00:43]} 27. Rh2 {[%emt 0:00:30]} a6 {[%emt 0:02:07]} 28. Rah1 {[%emt 0:00:30]} Qb6 {[%emt 0:02:22]} 29. Bxg5 {[%emt 0:01:30]} Qb2+ {[%emt 0:01:14]} 30. Qc2 {[%emt 0:00:30]} 1-0